[Event "25th Mediterranean Flower 2025"]
[Site "Rijeka"]
[Date "2025.03.03"]
[Round "2.5"]
[White "Ivekovic, Tihana"]
[Black "Skuhala, Barbara"]
[Result "0-1"]
[Annotator "TA"]
[ECO "D03"]
[WhiteElo "2089"]
[BlackElo "2115"]
[PlyCount "54"]
[EventDate "2025.03.02"]
[EventType "tourn"]
[EventCountry "CRO"]
[SourceTitle "playchess.com"]
[Source "ChessBase"]
[SourceQuality "1"]
[TimeControl "5400+30"]

{[%evp 15,54,-4,7,14,12,2,32,43,45,29,40,30,135,53,55,45,60,61,63,54,48,63,47,50,71,49,139,151,122,7,222,-379,0,0,0,-456,-439,-681,-674,-622,-606]} 1. d4 {[%emt 0:00:02]} Nf6 {[%emt 0:00:06]} 2. Nf3 {[%emt 0:00:05]} e6 {[%emt 0:00:04]} 3. Bg5 {[%emt 0:00:05]} d5 {[%emt 0:00:18]} 4. Nbd2 {[%emt 0:00:09]} c5 {[%emt 0:01:47]} 5. e3 {[%emt 0:00:23]} h6 {[%emt 0:00:20]} 6. Bh4 {[%emt 0:00:50]} Bd6 {[%emt 0:00:14]} 7. c3 {[%emt 0:01:38]} Nbd7 {[%emt 0:00:39]} 8. Bd3 {[%emt 0:02:13]} O-O {[%emt 0:00:22]} 9. O-O {[%emt 0:03:18] D03: 1 d4 d5 2 Nf3 Nf6 3 Bg5, including Torre Attack with early ...d5.} Re8 {[%emt 0:01:25]} 10. Re1 {[%emt 0:12:44]} e5 {[%emt 0:02:47] Threatens to win with ...e4.} 11. e4 $146 {[%emt 0:10:12] White is slightly better.} (11. dxe5 Nxe5 12. Nxe5 Bxe5 13. Nf3 Bc7 14. Qc2 Bg4 15. Bh7+ Kh8 16. Bf5 Bxf3 17. gxf3 {½-½ Popov,G (2218)-Enchev,I (2418) Bobotsov Memorial 2nd 2010 (3)}) 11... cxd4 {[%emt 0:05:19]} 12. cxd4 {[%emt 0:02:54]} exd4 {[%emt 0:04:39]} 13. exd5 {[%emt 0:04:33]} (13. Bxf6 {simplifies} Qxf6 14. exd5 Rxe1+ 15. Qxe1 Qd8 16. Rd1) 13... Ne5 {[%emt 0:15:41]} (13... Rxe1+ $11 {remains equal.} 14. Qxe1 Bb4) 14. Bb5 {[%emt 0:26:08]} (14. Nxe5 $16 Rxe5 15. Ne4) 14... Nxf3+ $14 {[%emt 0:09:43]} 15. Qxf3 {[%emt 0:02:34]} Rxe1+ {[%emt 0:15:26]} 16. Rxe1 {[%emt 0:00:06] Strongly threatening Bxf6. A sharp opening} g5 {[%emt 0:00:07]} 17. Ne4 $1 {[%emt 0:04:50]} Nxe4 {[%emt 0:03:39]} 18. Rxe4 {[%emt 0:00:23]} Bd7 {[%emt 0:00:24] Dodges Re8+} 19. Bxd7 {[%emt 0:00:32]} Qxd7 {[%emt 0:00:06]} 20. Bg3 {[%emt 0:00:25]} f5 {[%emt 0:33:03]} (20... Bxg3 $6 21. hxg3 Re8 (21... Qxd5 $2 22. Re8+ Rxe8 23. Qxd5 $18) 22. Kh2 $16 (22. Rxd4 Qd6 $18)) (20... Bf8 $14) 21. Re6 $1 $16 {[%emt 0:03:35]} (21. Rxd4 $2 Re8 (21... f4 $2 22. Bxf4 gxf4 23. Qh5 $19) 22. h4 Re1+ (22... f4 $2 23. Bxf4 Re1+ 24. Kh2 $19) 23. Kh2 f4 24. Bxf4 Bxf4+ (24... gxf4 $2 25. Re4 $19) 25. g3 Be5 $19) 21... f4 {[%emt 0:00:34]} 22. Rg6+ {[%emt 0:03:16]} ({White has to play} 22. Bxf4 $1 $16 Bxf4 23. g3) 22... Kf8 $2 {[%emt 0:02:54] [#]} (22... Kh8 $1 $11 23. Rxh6+ Kg7) 23. Qe4 $4 {[%emt 0:14:18][%mdl 8192] [#]} Re8 $2 $40 {[%emt 0:00:34][%mdl 128] Black has some attack.} (23... fxg3 $2 24. Rxh6 (24. Rf6+ Kg8 $11) 24... gxf2+ (24... gxh2+ $2 25. Kh1 $18) 25. Kxf2 $18) (23... Rc8 $1 $19 {[%cal Rc8c1] ( -> ...Rc1+)} 24. Rf6+ Kg8 25. Bxf4 (25. Qg6+ $2 Qg7 $19) 25... Bxf4) 24. Rf6+ $11 {[%emt 0:00:32]} (24. Qxd4 $2 Re1#) 24... Kg8 {[%emt 0:00:07]} (24... Kg7 $5 25. Qg6+ $8 (25. Qxd4 $2 Re1#) 25... Kh8 $11) 25. Rg6+ $2 {[%emt 0:00:29][%mdl 8192]} (25. Qxd4 $2 Re1#) (25. Qg6+ $11 Kh8 26. f3 (26. Rxd6 $2 Re1#) (26. Qxh6+ $2 Qh7 $19) 26... fxg3 27. hxg3 (27. Rxd6 $2 Re1#) (27. Qxh6+ $2 Qh7 $19) 27... Bxg3 28. Qxh6+ Qh7 29. Rf8+ Rxf8 30. Qxf8+ Qg8 31. Qh6+ Qh7 32. Qf8+) 25... Kf7 $19 {[%emt 0:00:46] Black is clearly winning.} 26. Re6 {[%emt 0:01:05]} (26. Qb1 $142 d3 (26... fxg3 $2 27. Rxh6 gxf2+ 28. Kxf2 $19) 27. Re6 (27. Rxh6 $2 {loses.} Bf8 $19) 27... Rxe6 (27... fxg3 $2 28. hxg3 Rxe6 29. dxe6+ Qxe6 30. Qxd3 $19) 28. dxe6+ Qxe6 29. Qxd3) 26... Rxe6 {[%emt 0:00:08]} ({Not} 26... fxg3 27. Qh7+ Kf8 28. Rf6+) 27. dxe6+ {[%emt 0:00:54]} Qxe6 {[%emt 0:02:48] Weighted Error Value: White=0.77/Black=0.60  Loses game:     	White=1     	Black=1      Missed win:     	White=1     	Black=1      Mistake:       	White=3     	Black=2      Inaccurate:     	---       	Black=1      OK:         	White=3     	Black=7      Best:        	White=1     	Black=3      Strong:       	White=2     	---} 0-1

[Event "25th Mediterranean Flower 2025"]
[Site "Rijeka"]
[Date "2025.03.03"]
[Round "3.1"]
[White "Skuhala, Barbara"]
[Black "Rakhmangulova, Anastasiya"]
[Result "1-0"]
[Annotator "RC"]
[ECO "C41"]
[WhiteElo "2115"]
[BlackElo "2324"]
[PlyCount "57"]
[EventDate "2025.03.02"]
[EventType "tourn"]
[EventCountry "CRO"]
[SourceTitle "playchess.com"]
[Source "ChessBase"]
[SourceQuality "1"]
[TimeControl "5400+30"]

1. e4 {[%emt 0:00:02]} d6 {[%emt 0:00:06]} 2. d4 {[%emt 0:00:04]} Nf6 {[%emt 0:00:04]} 3. Nc3 {[%emt 0:00:07]} e5 {[%emt 0:00:04]} 4. Nf3 {[%emt 0:00:10]} Nbd7 {[%emt 0:00:05]} 5. g4 {[%emt 0:00:08]} exd4 {[%emt 0:10:14]} 6. Nxd4 {[%emt 0:00:28]} Nc5 {[%emt 0:00:13]} 7. g5 {[%emt 0:11:20]} Nfd7 {[%emt 0:04:37]} 8. Be3 {[%emt 0:01:03]} g6 {[%emt 0:08:54]} 9. Qd2 {[%emt 0:03:00]} Bg7 {[%emt 0:06:28]} 10. Be2 {[%emt 0:00:46]} O-O {[%emt 0:05:44]} 11. O-O-O {[%emt 0:04:39]} Re8 {[%emt 0:00:45]} 12. f3 {[%emt 0:06:45]} c6 {[%emt 0:00:39]} 13. h4 {[%emt 0:05:12]} Qe7 {[%emt 0:05:59]} 14. h5 {[%emt 0:13:30]} d5 {[%emt 0:05:52]} 15. hxg6 {[%emt 0:02:20]} hxg6 {[%emt 0:02:51]} 16. Rh4 {[%emt 0:01:50]} Nf8 {[%emt 0:01:59]} 17. Rdh1 {[%emt 0:01:07]} dxe4 {[%emt 0:03:09]} 18. f4 {[%emt 0:06:23]} Be6 {[%emt 0:28:30]} 19. b4 {[%emt 0:14:28]} Ncd7 {[%emt 0:03:24]} 20. Nxe6 {[%emt 0:08:41]} Nxe6 {[%emt 0:00:06]} 21. Nxe4 {[%emt 0:05:21]} Rad8 {[%emt 0:03:01]} 22. Bc4 {[%emt 0:07:59]} f5 {[%emt 0:00:26]} 23. Bd4 {[%emt 0:05:51]} fxe4 {[%emt 0:04:27]} 24. f5 {[%emt 0:00:23]} gxf5 {[%emt 0:04:08]} 25. Rh8+ {[%emt 0:00:51]} Kf7 {[%emt 0:00:22]} 26. g6+ {[%emt 0:00:09]} Kxg6 {[%emt 0:00:04]} 27. Rxe8 {[%emt 0:00:38]} Rxe8 {[%emt 0:01:08]} 28. Bxe6 {[%emt 0:00:07]} Qg5 {[%emt 0:01:11]} 29. Bf7+ {[%emt 0:01:38]} 1-0

[Event "25th Mediterranean Flower 2025"]
[Site "Rijeka"]
[Date "2025.03.03"]
[Round "3.2"]
[White "Berke, Ana"]
[Black "Ivekovic, Tihana"]
[Result "1/2-1/2"]
[Annotator "NA"]
[ECO "C54"]
[WhiteElo "2119"]
[BlackElo "2089"]
[PlyCount "72"]
[EventDate "2025.03.02"]
[EventType "tourn"]
[EventCountry "CRO"]
[SourceTitle "playchess.com"]
[Source "ChessBase"]
[SourceQuality "1"]
[TimeControl "5400+30"]

1. e4 {[%emt 0:00:12]} e5 {[%emt 0:00:05]} 2. Nf3 {[%emt 0:00:06]} Nc6 {[%emt 0:00:04]} 3. Bc4 {[%emt 0:00:06]} Bc5 {[%emt 0:00:04]} 4. c3 {[%emt 0:00:16]} Nf6 {[%emt 0:00:06]} 5. b4 {[%emt 0:00:18]} Be7 {[%emt 0:00:38]} 6. d3 {[%emt 0:00:46]} a6 {[%emt 0:10:24]} 7. O-O {[%emt 0:04:34]} O-O {[%emt 0:00:05]} 8. Re1 {[%emt 0:01:21]} d6 {[%emt 0:02:16]} 9. a4 {[%emt 0:02:12]} h6 {[%emt 0:08:47]} 10. Nbd2 {[%emt 0:01:08]} Nh7 {[%emt 0:08:05]} 11. Nf1 {[%emt 0:08:29]} Ng5 {[%emt 0:07:59]} 12. Ne3 {[%emt 0:01:33]} Be6 {[%emt 0:04:14]} 13. Nf5 {[%emt 0:06:59]} Bxc4 {[%emt 0:22:41]} 14. dxc4 {[%emt 0:00:54]} Nxf3+ {[%emt 0:08:33]} 15. Qxf3 {[%emt 0:01:37]} Bg5 {[%emt 0:00:34]} 16. Be3 {[%emt 0:19:07]} Bxe3 {[%emt 0:03:45]} 17. fxe3 {[%emt 0:05:35]} Qf6 {[%emt 0:04:59]} 18. Rf1 {[%emt 0:04:40]} Ne7 {[%emt 0:02:49]} 19. g4 {[%emt 0:05:54]} Rae8 {[%emt 0:05:32]} 20. Ra2 {[%emt 0:01:47]} Nxf5 {[%emt 0:06:02]} 21. gxf5 {[%emt 0:00:22]} Kh7 {[%emt 0:00:46]} 22. Rg2 {[%emt 0:00:52]} c6 {[%emt 0:00:49]} 23. Kh1 {[%emt 0:02:17]} Rd8 {[%emt 0:00:37]} 24. Rfg1 {[%emt 0:00:57]} Rg8 {[%emt 0:00:17]} 25. a5 {[%emt 0:02:10]} Rd7 {[%emt 0:01:37]} 26. Rd2 {[%emt 0:04:39]} Rdd8 {[%emt 0:00:14]} 27. Rgd1 {[%emt 0:00:47]} Rge8 {[%emt 0:00:31]} 28. Qg4 {[%emt 0:00:45]} Rd7 {[%emt 0:00:24]} 29. c5 {[%emt 0:02:44]} Red8 {[%emt 0:00:06]} 30. c4 {[%emt 0:00:43]} Kg8 {[%emt 0:00:46]} 31. Rd3 {[%emt 0:01:15]} Kf8 {[%emt 0:00:26]} 32. R1d2 {[%emt 0:01:11]} Ke8 {[%emt 0:01:29]} 33. Kg2 {[%emt 0:15:01]} dxc5 {[%emt 0:00:09]} 34. Rxd7 {[%emt 0:01:12]} Rxd7 {[%emt 0:00:05]} 35. Rxd7 {[%emt 0:01:35]} Kxd7 {[%emt 0:00:05]} 36. bxc5 {[%emt 0:00:40]} Qg5 {[%emt 0:02:27]} 1/2-1/2

[Event "25th Mediterranean Flower 2025"]
[Site "Rijeka"]
[Date "2025.03.03"]
[Round "3.3"]
[White "Hajdinic, Ema"]
[Black "Zagorac, Lara"]
[Result "1/2-1/2"]
[Annotator "NA"]
[ECO "C68"]
[WhiteElo "1914"]
[BlackElo "2061"]
[PlyCount "51"]
[EventDate "2025.03.02"]
[EventType "tourn"]
[EventCountry "CRO"]
[SourceTitle "playchess.com"]
[Source "ChessBase"]
[SourceQuality "1"]
[TimeControl "5400+30"]

1. e4 {[%emt 0:00:01]} e5 {[%emt 0:00:09]} 2. Nf3 {[%emt 0:00:24]} Nc6 {[%emt 0:00:11]} 3. Bb5 {[%emt 0:00:09]} a6 {[%emt 0:00:10]} 4. Bxc6 {[%emt 0:00:05]} dxc6 {[%emt 0:00:32]} 5. O-O {[%emt 0:00:05]} Bg4 {[%emt 0:04:07]} 6. h3 {[%emt 0:00:06]} Bxf3 {[%emt 0:01:29]} 7. Qxf3 {[%emt 0:00:11]} Bd6 {[%emt 0:03:17]} 8. d3 {[%emt 0:02:51]} Ne7 {[%emt 0:01:54]} 9. Nd2 {[%emt 0:02:01]} O-O {[%emt 0:01:58]} 10. Nc4 {[%emt 0:01:03]} Qd7 {[%emt 0:01:34]} 11. Qg3 {[%emt 0:03:09]} f5 {[%emt 0:08:01]} 12. Nxd6 {[%emt 0:04:12]} cxd6 {[%emt 0:02:00]} 13. f4 {[%emt 0:04:42]} fxe4 {[%emt 0:11:17]} 14. dxe4 {[%emt 0:00:25]} d5 {[%emt 0:03:30]} 15. Be3 {[%emt 0:16:06]} exf4 {[%emt 0:07:36]} 16. Bxf4 {[%emt 0:05:46]} dxe4 {[%emt 0:06:51]} 17. Rad1 {[%emt 0:01:14]} Qe8 {[%emt 0:11:40]} 18. Bd6 {[%emt 0:03:35]} Rd8 {[%emt 0:10:05]} 19. Rfe1 {[%emt 0:08:51]} Qf7 {[%emt 0:04:20]} 20. Qb3 {[%emt 0:03:59]} Qxb3 {[%emt 0:03:24]} 21. axb3 {[%emt 0:00:19]} Rf7 {[%emt 0:03:09]} 22. Bxe7 {[%emt 0:02:04]} Rxd1 {[%emt 0:00:14]} 23. Rxd1 {[%emt 0:00:09]} Rxe7 {[%emt 0:00:04]} 24. Kf2 {[%emt 0:00:11]} e3+ {[%emt 0:00:46]} 25. Ke2 {[%emt 0:00:07]} Kf7 {[%emt 0:01:58]} 26. Rf1+ {[%emt 0:01:49]} 1/2-1/2

[Event "25th Mediterranean Flower 2025"]
[Site "Rijeka"]
[Date "2025.03.03"]
[Round "3.4"]
[White "Vidic, Teja"]
[Black "Kejzar, Petra"]
[Result "0-1"]
[Annotator "NA RC"]
[ECO "A14"]
[WhiteElo "2088"]
[BlackElo "2052"]
[PlyCount "120"]
[EventDate "2025.03.02"]
[EventType "tourn"]
[EventCountry "CRO"]
[SourceTitle "playchess.com"]
[Source "ChessBase"]
[SourceQuality "1"]
[TimeControl "5400+30"]

1. Nf3 {[%emt 0:00:06]} d5 {[%emt 0:03:30]} 2. c4 {[%emt 0:00:06]} c6 {[%emt 0:00:33]} 3. b3 {[%emt 0:00:17]} Nf6 {[%emt 0:00:25]} 4. Bb2 {[%emt 0:00:45]} e6 {[%emt 0:00:48]} 5. g3 {[%emt 0:00:09]} Be7 {[%emt 0:00:12]} 6. Bg2 {[%emt 0:00:05]} O-O {[%emt 0:00:24]} 7. O-O {[%emt 0:00:06]} Nbd7 {[%emt 0:02:00]} 8. d3 {[%emt 0:01:45]} b6 {[%emt 0:03:22]} 9. Nbd2 {[%emt 0:01:29]} Bb7 {[%emt 0:02:41]} 10. Rc1 {[%emt 0:00:10]} a5 {[%emt 0:05:01]} 11. a3 {[%emt 0:06:17]} Re8 {[%emt 0:03:15]} 12. Rc2 {[%emt 0:03:31]} Bf8 {[%emt 0:04:40]} 13. Qa1 {[%emt 0:00:51]} c5 {[%emt 0:01:03]} 14. e3 {[%emt 0:18:25]} a4 {[%emt 0:03:29]} 15. Ne5 {[%emt 0:07:56]} axb3 {[%emt 0:05:16]} 16. Nxb3 {[%emt 0:00:24]} Nxe5 {[%emt 0:00:47]} 17. Bxe5 {[%emt 0:00:05]} Nd7 {[%emt 0:00:18]} 18. Bb2 {[%emt 0:02:23]} Bc6 {[%emt 0:03:03]} 19. Rd2 {[%emt 0:08:48]} Qc8 {[%emt 0:05:33]} 20. Nc1 {[%emt 0:04:18]} dxc4 {[%emt 0:07:38]} 21. dxc4 {[%emt 0:00:24]} Bxg2 {[%emt 0:01:30]} 22. Kxg2 {[%emt 0:00:04]} Qb7+ {[%emt 0:00:43]} 23. Kg1 {[%emt 0:00:29]} Nb8 {[%emt 0:06:21]} 24. Rfd1 {[%emt 0:03:52]} Qe4 {[%emt 0:01:09]} 25. Qa2 {[%emt 0:05:27]} Nc6 {[%emt 0:01:03]} 26. Bc3 {[%emt 0:00:25]} h5 {[%emt 0:03:59]} 27. h4 {[%emt 0:09:25]} Ra4 {[%emt 0:02:06]} 28. Ne2 {[%emt 0:02:41]} Rea8 {[%emt 0:02:18]} 29. Qb2 {[%emt 0:01:29]} R8a6 {[%emt 0:08:54]} 30. Qb5 {[%emt 0:07:14]} Rxa3 {[%emt 0:05:56]} 31. Bb2 {[%emt 0:00:38]} R3a5 {[%emt 0:00:44]} 32. Qb3 {[%emt 0:01:22]} Ne5 {[%emt 0:05:28]} 33. Bxe5 {[%emt 0:00:22]} Qxe5 {[%emt 0:00:00]} 34. Nf4 {[%emt 0:01:47]} Ra1 {[%emt 0:02:07]} 35. Kh2 {[%emt 0:00:07]} R6a3 {[%emt 0:03:18]} 36. Qxb6 {[%emt 0:01:25]} Rxd1 {[%emt 0:00:17]} 37. Rxd1 {[%emt 0:00:05]} Ra2 {[%emt 0:00:56]} 38. Kg1 {[%emt 0:01:53]} Rb2 {[%emt 0:01:58]} 39. Qd8 {[%emt 0:06:22]} Qf5 {[%emt 0:01:33]} 40. Qa8 {[%emt 0:01:49]} Qc2 {[%emt 0:01:02]} 41. Qf3 {[%emt 0:00:13]} Qxc4 {[%emt 0:01:36]} 42. Qxh5 {[%emt 0:00:12]} Qc2 {[%emt 0:00:34]} 43. Qf3 {[%emt 0:01:11]} Rb1 {[%emt 0:00:12]} 44. Rxb1 {[%emt 0:00:50]} Qxb1+ {[%emt 0:00:01]} 45. Kg2 {[%emt 0:00:08]} c4 {[%emt 0:01:01]} 46. Qc6 {[%emt 0:01:18]} Qb3 {[%emt 0:01:47]} 47. Ne2 {[%emt 0:01:53]} Qd3 {[%emt 0:01:22]} 48. Nf4 {[%emt 0:00:03]} Qc2 {[%emt 0:00:14]} 49. Nh3 {[%emt 0:01:43]} c3 {[%emt 0:01:07]} 50. Ng5 {[%emt 0:00:02]} Qb3 {[%emt 0:01:03]} 51. Qc7 {[%emt 0:02:02]} e5 {[%emt 0:00:26]} 52. Kh2 {[%emt 0:00:43]} c2 {[%emt 0:00:23]} 53. Nxf7 {[%emt 0:00:53]} Ba3 {[%emt 0:00:38]} 54. Qc8+ {[%emt 0:00:32]} Kxf7 {[%emt 0:00:17]} 55. Qf5+ {[%emt 0:00:04]} Kg8 {[%emt 0:00:19]} 56. Qc8+ {[%emt 0:00:04]} Bf8 {[%emt 0:00:15]} 57. h5 {[%emt 0:00:16]} Qd3 {[%emt 0:01:21]} 58. Qe6+ {[%emt 0:00:09]} Kh7 {[%emt 0:00:19]} 59. Qc8 {[%emt 0:00:27]} Ba3 {[%emt 0:00:22]} 60. h6 {[%emt 0:00:21]} c1=Q {[%emt 0:00:36]} 0-1

[Event "25th Mediterranean Flower 2025"]
[Site "Rijeka"]
[Date "2025.03.03"]
[Round "3.5"]
[White "Doluhanova, Evgeniya"]
[Black "Medic, Mirjana"]
[Result "0-1"]
[Annotator "RC"]
[ECO "A40"]
[WhiteElo "2272"]
[BlackElo "2069"]
[PlyCount "132"]
[EventDate "2025.03.02"]
[EventType "tourn"]
[EventCountry "CRO"]
[SourceTitle "playchess.com"]
[Source "ChessBase"]
[SourceQuality "1"]
[TimeControl "5400+30"]

1. d4 {[%emt 0:00:01]} e6 {[%emt 0:00:55]} 2. c3 {[%emt 0:00:12]} f5 {[%emt 0:00:35]} 3. e4 {[%emt 0:39:41]} fxe4 {[%emt 0:03:46]} 4. Qc2 {[%emt 0:00:18]} Nf6 {[%emt 0:00:37]} 5. Bg5 {[%emt 0:00:47]} d5 {[%emt 0:07:06]} 6. f3 {[%emt 0:00:43]} exf3 {[%emt 0:00:47]} 7. Nxf3 {[%emt 0:00:07]} Be7 {[%emt 0:00:07]} 8. Bd3 {[%emt 0:00:42]} Nbd7 {[%emt 0:04:04]} 9. Nbd2 {[%emt 0:09:45]} c5 {[%emt 0:07:58]} 10. O-O {[%emt 0:05:43]} Qb6 {[%emt 0:07:18]} 11. Rae1 {[%emt 0:08:43]} c4 {[%emt 0:20:55]} 12. Bxh7 {[%emt 0:06:16]} Rxh7 {[%emt 0:03:53]} 13. Qg6+ {[%emt 0:00:22]} Kd8 {[%emt 0:00:02]} 14. Bxf6 {[%emt 0:00:23]} Nxf6 {[%emt 0:00:29]} 15. Ng5 {[%emt 0:00:33]} Rh4 {[%emt 0:04:55]} 16. Nf7+ {[%emt 0:06:19]} Kd7 {[%emt 0:00:43]} 17. Ne5+ {[%emt 0:08:47]} Kd8 {[%emt 0:00:46]} 18. Qxg7 {[%emt 0:02:44]} Ne8 {[%emt 0:01:02]} 19. Qg3 {[%emt 0:01:32]} Rh7 {[%emt 0:00:56]} 20. Nf7+ {[%emt 0:02:40]} Kd7 {[%emt 0:00:14]} 21. Nf3 {[%emt 0:00:52]} Bd6 {[%emt 0:04:01]} 22. Qg6 {[%emt 0:01:57]} Rxf7 {[%emt 0:02:16]} 23. Qxe6+ {[%emt 0:01:52]} Kc7 {[%emt 0:00:34]} 24. Qxf7+ {[%emt 0:00:03]} Bd7 {[%emt 0:00:11]} 25. Ng5 {[%emt 0:00:57]} Qc6 {[%emt 0:02:19]} 26. b4 {[%emt 0:00:52]} cxb3 {[%emt 0:04:49]} 27. axb3 {[%emt 0:00:03]} Rc8 {[%emt 0:00:33]} 28. c4 {[%emt 0:00:21]} Kb8 {[%emt 0:00:38]} 29. c5 {[%emt 0:00:35]} Bc7 {[%emt 0:00:44]} 30. b4 {[%emt 0:00:12]} Qh6 {[%emt 0:07:05]} 31. Nf3 {[%emt 0:00:44]} Bb5 {[%emt 0:01:46]} 32. Rf2 {[%emt 0:00:53]} Nf6 {[%emt 0:04:43]} 33. Ne5 {[%emt 0:00:24]} Ne4 {[%emt 0:00:17]} 34. Qf4 {[%emt 0:00:33]} Qg7 {[%emt 0:02:48]} 35. Rf3 {[%emt 0:00:34]} a6 {[%emt 0:00:38]} 36. Qf5 {[%emt 0:00:34]} Rg8 {[%emt 0:00:25]} 37. g3 {[%emt 0:00:21]} Qh6 {[%emt 0:01:31]} 38. Qf4 {[%emt 0:00:38]} Ng5 {[%emt 0:00:34]} 39. Kg2 {[%emt 0:00:24]} Qh3+ {[%emt 0:00:19]} 40. Kh1 {[%emt 0:00:13]} Nxf3 {[%emt 0:00:18]} 41. Qxf3 {[%emt 0:00:04]} Rh8 {[%emt 0:00:30]} 42. Qf2 {[%emt 0:00:05]} Bxe5 {[%emt 0:01:38]} 43. Rxe5 {[%emt 0:00:32]} Bd3 {[%emt 0:00:03]} 44. Re7 {[%emt 0:01:25]} Be4+ {[%emt 0:01:23]} 45. Kg1 {[%emt 0:00:03]} Qh6 {[%emt 0:02:47]} 46. h4 {[%emt 0:01:08]} Rf8 {[%emt 0:00:30]} 47. Rf7 {[%emt 0:00:30]} Rxf7 {[%emt 0:01:32]} 48. Qxf7 {[%emt 0:00:05]} Qe3+ {[%emt 0:00:05]} 49. Qf2 {[%emt 0:00:08]} Qc1+ {[%emt 0:00:19]} 50. Qf1 {[%emt 0:00:04]} Qc3 {[%emt 0:00:57]} 51. Qf2 {[%emt 0:00:05]} Qxb4 {[%emt 0:00:12]} 52. g4 {[%emt 0:00:12]} Qb1+ {[%emt 0:00:16]} 53. Kh2 {[%emt 0:00:04]} Qc2 {[%emt 0:01:25]} 54. Kg3 {[%emt 0:00:05]} Qxf2+ {[%emt 0:00:41]} 55. Kxf2 {[%emt 0:00:05]} a5 {[%emt 0:00:07]} 56. Ke3 {[%emt 0:00:05]} a4 {[%emt 0:00:45]} 57. Kd2 {[%emt 0:00:03]} Bf3 {[%emt 0:00:16]} 58. g5 {[%emt 0:00:13]} Bh5 {[%emt 0:00:06]} 59. Kc3 {[%emt 0:00:04]} Ka7 {[%emt 0:00:50]} 60. Kb4 {[%emt 0:00:17]} Be8 {[%emt 0:00:08]} 61. Ka3 {[%emt 0:01:12]} Ka6 {[%emt 0:01:36]} 62. Kb4 {[%emt 0:00:05]} b5 {[%emt 0:00:28]} 63. cxb6 {[%emt 0:00:28]} Kxb6 {[%emt 0:00:01]} 64. h5 {[%emt 0:00:11]} Bxh5 {[%emt 0:00:08]} 65. Kxa4 {[%emt 0:00:03]} Bg6 {[%emt 0:00:26]} 66. Kb4 {[%emt 0:00:07]} Be8 {[%emt 0:00:07]} 0-1